Cogmind - Beta 17 @@@ ROGUE MODE // 2026.07.08 @ 13:07:11 Player: lxealomych Result: Destroyed by G-47 Trooper with Particle Gun Performance ------------- Evolutions (2) 1000 Regions Visited (3) 600 Robots Destroyed (59) 295 Value Destroyed (1985) 1985 Prototype IDs (1) 20 Alien Tech Used (0) 0 Bonus (0) 0 TOTAL SCORE: 3900 Bonus ------- None Cogmind --------- Core Integrity 0/550 Matter 300/300 Energy 100/100 System Corruption 0% Temperature Cool (9) Movement Core (700) Ox13 Location -8/Materials Parts ------- > --- POWER (1) -------- (None) > --- PROPULSION (4) --- (None) > --- UTILITY (4) ------ High-capacity Storage Unit Signal Interpreter > --- WEAPON (2) ------- (None) > --- INVENTORY (20) --- Carbon-fiber Leg Improved Heat Sink Large Storage Unit Large Storage Unit Visual Processing Unit Terrain Scanner Melee Analysis Suite Reactive Plating Hacking Suite Hacking Suite Field Recycling Unit (0) Mining Laser Peak State ------------ > --- POWER ------------ Light Nuclear Core > --- PROPULSION ------- Aluminum Leg Aluminum Leg Aluminum Leg Aluminum Leg > --- UTILITY ---------- High-capacity Storage Unit Improved Sensor Array Signal Interpreter Tractor Beam > --- WEAPON ----------- Advanced Beam Cannon Assault Cannon > --- INVENTORY -------- Light Deuterium Engine Aluminum Leg Aluminum Leg Improved Heat Sink Large Storage Unit Large Storage Unit Visual Processing Unit Terrain Scanner Melee Analysis Suite Reactive Plating Hacking Suite Hacking Suite Field Recycling Unit Shock Rifle Beam Rifle Assault Rifle Grenade Launcher Mining Laser [Rating: 22] Favorites ----------- Power Ion Engine Engine Ion Engine Power Core Light Nuclear Core Propulsion Aluminum Leg Treads Light Treads Leg Aluminum Leg Utility Large Storage Unit Device Improved Sensor Array Storage Large Storage Unit Processor Signal Interpreter Protection Core Shielding Weapon Small Laser Energy Gun Small Laser Energy Cannon Advanced Beam Cannon Ballistic Gun Assault Rifle Ballistic Cannon Assault Cannon Launcher Grenade Launcher Special Weapon Mining Laser Build | -11 -10 -9 -8 ------- Run | Yrd Mat Mat Mat Slots Evolved 4 | . . 2 2 Power . | . . . . Propulsion 2 | . . 1 1 Utility 2 | . . 1 1 Weapon . | . . . . Parts Attached 47 | 6 7 18 16 Power 7 | 1 1 3 2 Engine 6 | 1 1 3 1 Core 1 | . . . 1 Reactor . | . . . . Propulsion 16 | 2 2 5 7 Treads 2 | 2 . . . Leg 14 | . 2 5 7 Wheel . | . . . . Hover . | . . . . Flight . | . . . . Utility 10 | 1 3 3 3 Device 2 | . . 1 1 Storage 4 | 1 1 1 1 Processor 1 | . . . 1 Hackware . | . . . . Protection 3 | . 2 1 . Artifact . | . . . . Weapon 14 | 2 1 7 4 Energy Gun 5 | 2 . 1 2 Energy Cannon 1 | . . . 1 Ballistic Gun 5 | . 1 4 . Ballistic Cannon 1 | . . . 1 Launcher 1 | . . 1 . Special Weapon 1 | . . 1 . Impact Weapon . | . . . . Slashing Weapon . | . . . . Piercing Weapon . | . . . . Special Melee Weapon . | . . . . Unidentified Prototypes 1 | . . . 1 Parts Lost 26 | . 1 6 19 Power 5 | . 1 1 3 Propulsion 8 | . . 2 6 Utility 4 | . . 1 3 Weapon 9 | . . 2 7 Highest Loss Streak 9 | . 1 4 9 To Critical Strikes . | . . . . Average Backups 12 | 2 8 13 15 Power 1 | . 1 2 1 Propulsion 1 | 1 2 2 . Utility 5 | . 2 5 8 Weapon 3 | . 2 2 4 Tool/Special . | . . . . Unused Backups 13 | . . . 13 Power 1 | . . . 1 Propulsion 2 | . . . 2 Utility 10 | . . . 10 Weapon . | . . . . Tool/Special . | . . . . Average Slot Usage (%) 91 | . 97 86 89 Engine 10 | . 13 10 7 Treads 5 | . 18 . . Leg 24 | . 9 30 31 Device 5 | . . 3 10 Storage 11 | . 14 11 9 Processor 3 | . . . 8 Protection 8 | . 11 9 5 Energy Gun 8 | . 18 2 5 Energy Cannon 1 | . . . 3 Ballistic Gun 8 | . 9 12 4 Ballistic Cannon 1 | . . . 3 Launcher 1 | . . 5 . Peak Build Rating 22 | 6 8 12 22 Average Rating 11 | 4 7 8 17 On Entrance 6 | . 6 8 12 Avg Prop Armor Cover (%) . | . . . . Naked Turns . | . . . . Heaviest Build 57 | 12 27 35 57 Greatest Support 43 | 40 40 33 43 Greatest Overweight (x) 14 | . 1 2 14 Average Overweight (x) . | . . . 1 Largest Inventory Capacity 20 | 8 15 15 20 Average Capacity 15 | 7 11 15 19 Most Carried 20 | 5 14 15 20 Average Carried 12 | 2 8 13 15 Final Capacity 20 | 8 15 15 20 Final Carried 14 | 3 14 14 12 Class Distribution -------------------- 46% | Mutant 42% | Scavenger-Mutant 10% | Scientist-Mutant Dominant Class ---------------- Mutant | -10/Materials Scientist-Mutant | -9/Materials Scavenger-Mutant | -8/Materials Resources | -11 -10 -9 -8 ----------- Run | Yrd Mat Mat Mat Matter Collected 1211 | 233 154 367 457 Remotely 391 | . . 65 326 Salvage Created 2166 | . 597 753 816 Parts 113 | . 35 52 26 Haulers Intercepted . | . . . . Recyclers Shooed 5 | . . 4 1 Parts Field Recycled . | . . . . Retrieved Matter . | . . . . Parts Self-Destructed . | . . . . Prevented . | . . . . Parts Restored . | . . . . Kills | -11 -10 -9 -8 ------- Run | Yrd Mat Mat Mat Combat Hostiles Destroyed 49 | . 14 17 18 Guns 33 | . 14 11 8 Cannons 8 | . . . 8 AOE 8 | . . 6 2 Classes Destroyed 11 | . 3 5 3 Worker 1 | . . . 1 Builder 1 | . . 1 . Tunneler 1 | . . 1 . Recycler 1 | . . 1 . Operator 1 | . . . 1 Watcher 5 | . 3 2 . Swarmer 6 | . 3 3 . Grunt 35 | . 11 11 13 Duelist 1 | . . 1 . Sentry 5 | . . 2 3 Hunter 2 | . . . 2 Best Kill Streak 7 | . 5 7 4 Combat Bots Only 5 | . 5 5 4 Max Kills in Single Turn 2 | . 2 2 1 Gunslinging 1 | . 1 . . Exploded 2 | . . 2 1 Melee . | . . . . Uniques/NPCs Destroyed . | . . . . Combat | -11 -10 -9 -8 -------- Run | Yrd Mat Mat Mat Hostile Shots Fired 405 | . 73 116 216 Missed 110 | . 22 34 54 Hits 295 | . 51 82 162 Melee 3 | . . 3 . Projectile 292 | . 51 79 162 Critical Strikes 12 | . 1 1 10 Damage Taken 4114 | . 657 1022 2435 Core 979 | . 174 240 565 Absorbed by Shields . | . . . . Redirected to Shielding 97 | . 56 41 . Regen/Repaired (Parts) 54 | . . . 54 Core Remaining (%) 56 | 100 30 40 . Volleys Fired 203 | . 49 63 91 Largest 2 | . 2 2 2 Hottest 105 | . 80 60 105 Shots Fired 328 | . 98 91 139 Gun 250 | . 98 85 67 Cannon 66 | . . . 66 Launcher 11 | . . 6 5 Special 1 | . . . 1 Kinetic 167 | . 23 68 76 Thermal 127 | . 75 6 46 Explosive 11 | . . 6 5 Electromagnetic 23 | . . 11 12 Robot Hit Streak 21 | . 6 21 15 Robot Miss Streak 4 | . 4 2 3 Penetration Max . | . . . . Secondary Targets 6 | . 3 3 . Max Gunslinging Chain 1 | . 1 1 . Shots Hit Robots 219 | . 60 65 94 Core Hits 110 | . 32 32 46 Critical Kills . | . . . . Critical Parts Destroyed . | . . . . Critical Strikes 2 | . . . 2 Blast 2 | . . . 2 Melee Attacks . | . . . . Impact . | . . . . Slashing . | . . . . Piercing . | . . . . Sneak Attacks . | . . . . Combat Hostiles . | . . . . Follow-up Attacks . | . . . . Damage Inflicted 3798 | . 701 1265 1832 Guns 1986 | . 701 735 550 Cannons 918 | . . . 918 Explosions 876 | . . 522 354 Melee . | . . . . Ramming 18 | . . 8 10 Kinetic 1503 | . 202 586 715 Thermal 1193 | . 499 116 578 Explosive 792 | . . 438 354 Electromagnetic 292 | . . 117 175 Impact . | . . . . Slashing . | . . . . Piercing . | . . . . Highest Corruption . | . . . . Average Corruption . | . . . . Corruption Purged . | . . . . Corruption Blocked . | . . . . Overload Shots . | . . . . Overflow Damage 13 | . . 13 . Projectiles . | . . . . Explosions 13 | . . 13 . Melee . | . . . . Knockbacks 6 | . . . 6 Impact . | . . . . Kinetic 4 | . . . 4 Secondary 2 | . . . 2 Self-Inflicted Damage 32 | . . 30 2 Shots 4 | . . 2 2 Rammed . | . . . . Targets Rammed 3 | . . 2 1 Kicked 3 | . . 2 1 Crushed . | . . . . Highest Temperature 324 | . 302 10 324 Average Temperature 79 | . 81 3 83 Received Heat Transfer 1773 | . 324 333 1116 Effects 2 | . 2 . . Energy Bleed 2 | . 2 . . Siege Activations . | . . . . Martial Activations . | . . . . Shielding Activations . | . . . . Robots Disrupted . | . . . . Combat Hostiles . | . . . . Robots Corrupted . | . . . . Combat Hostiles . | . . . . Parts Fried . | . . . . Impact Corruptions . | . . . . Robots Melted . | . . . . Combat Hostiles . | . . . . Parts Melted 1 | . 1 . . Heat Transferred 2410 | . 1125 175 1110 Parts Sabotaged . | . . . . Parts Stolen . | . . . . Parts Stripped . | . . . . Power Chain Reactions 1 | . . 1 . Alert | -11 -10 -9 -8 ------- Run | Yrd Mat Mat Mat Maximum Alert Level 1 | . . 1 . Low Security (%) 99 | 100 100 97 100 Level 1 . | . . 2 . Level 2 . | . . . . Level 3 . | . . . . Level 4 . | . . . . Level 5 . | . . . . High Security . | . . . . Max Security . | . . . . Peak Influence 244 | . 117 244 102 Initial 13 | . . 13 5 Average 33 | . 46 46 19 Influence Increases 1447 | . 378 531 538 Destroy 0b10 Robot/C 980 | . 280 340 360 Destroy 0b10 Robot/NC 50 | . 15 25 10 Destroy Leader 240 | . 66 84 90 Successful Hack 24 | . 2 6 16 Disable Machine 45 | . . 15 30 Destroy Structure 63 | . . 46 17 Lose Combat Pursuer 45 | . 15 15 15 Influence Decreases 1367 | . 346 548 473 Entered New Map 29 | . . 19 10 Time Decay 827 | . 287 245 295 Lost Part 228 | . 10 50 168 Purge Threat 283 | . 49 234 . Squads Dispatched 16 | . 2 4 10 Investigation 10 | . 1 3 6 Extermination . | . . . . Reinforcement 3 | . 1 1 1 Assault . | . . . . Garrison 3 | . . . 3 Intercept . | . . . . Searches Triggered . | . . . . Construction Impeded . | . . . . Haulers Reinforced . | . . . . Active Scanning Responses . | . . . . Cargo Convoy Interrupts . | . . . . Stealth | -11 -10 -9 -8 --------- Run | Yrd Mat Mat Mat Distress Signals 5 | . 2 1 2 Communications Jammed . | . . . . Distress Signals . | . . . . Times Spotted 85 | . 21 30 34 Peak Tracking Total 7 | . 4 7 7 Tactical Retreats 3 | . 1 1 1 Traps | -11 -10 -9 -8 ------- Run | Yrd Mat Mat Mat Traps Triggered 3 | . 2 . 1 Indirectly . | . . . . Trap Hack Attempts . | . . . . Triggered . | . . . . Disarmed . | . . . . Reprogrammed . | . . . . Reused . | . . . . Traps Extracted . | . . . . Installed . | . . . . Triggered . | . . . . Machines | -11 -10 -9 -8 ---------- Run | Yrd Mat Mat Mat Machines Disabled 3 | . . 1 2 Max in Single Turn 1 | . . 1 1 Machines Repaired . | . . . . Machines Dismantled . | . . . . Machines Sabotaged . | . . . . Overloaded Fab Kills . | . . . . Hacking | -11 -10 -9 -8 --------- Run | Yrd Mat Mat Mat Machines Accessed 16 | . 2 5 9 Terminals 8 | . 2 2 4 Fabricators . | . . . . Repair Stations 2 | . . . 2 Recycling Units 2 | . . 1 1 Scanalyzers 3 | . . 2 1 Garrison Access 1 | . . . 1 Total Hacks 63 | . 7 22 34 Successful 31 | . 5 13 13 Failed 31 | . 2 9 20 Catastrophic 9 | . 1 4 4 Database Lockouts 1 | . . . 1 Manual 22 | . 4 6 12 Terminals 28 | . 7 6 15 Fabricators . | . . . . Repair Stations 8 | . . . 8 Recycling Units 8 | . . 5 3 Scanalyzers 17 | . . 11 6 Garrison Access 2 | . . . 2 Terminal Hacks 13 | . 5 3 5 Record 4 | . 3 . 1 Part Schematic 1 | . . . 1 Terminal Index 2 | . . 1 1 Alert Level 1 | . . . 1 Unreport Threat 3 | . 1 2 . Recall Investigation 1 | . . . 1 Hauler Manifests 1 | . 1 . . Fabricator Hacks . | . . . . Repair Station Hacks 3 | . . . 3 Scan Component 2 | . . . 2 Repair 1 | . . . 1 Recycling Unit Hacks 2 | . . 1 1 Report Inventory 2 | . . 1 1 Scanalyzer 13 | . . 9 4 Insert Component 2 | . . 1 1 Analyze 2 | . . 1 1 Retrieve Study 9 | . . 7 2 Garrison Access Hacks . | . . . . Unauthorized Hacks . | . . . . Terminals . | . . . . Fabricators . | . . . . Repair Stations . | . . . . Recycling Units . | . . . . Scanalyzers . | . . . . Garrison Access . | . . . . Data Cores Recovered 1 | . . . 1 Used . | . . . . Hacking Detections 13 | . 1 4 8 Full Trace Events 11 | . 1 4 6 Feedback Events . | . . . . Feedback Blocked . | . . . . Robot Schematics Acquired . | . . . . Robots Built . | . . . . Authchips . | . . . . Time . | . . . . Total Robot Build Rating . | . . . . Part Schematics Acquired 3 | . . 1 2 Parts Built . | . . . . Authchips . | . . . . Time . | . . . . Total Part Build Rating . | . . . . Part Studies Acquired 9 | . . 7 2 Parts Repaired 1 | . . . 1 Time 26 | . . . 26 Parts Recycled . | . . . . Recycled Matter . | . . . . Retrieved Matter . | . . . . Retrieved Components . | . . . . Parts Scanalyzed 2 | . . 1 1 Part Schematics Acquired 2 | . . 1 1 Parts Damaged . | . . . . Bothacking | -11 -10 -9 -8 ------------ Run | Yrd Mat Mat Mat Used RIF Installer . | . . . . Robots Hacked . | . . . . Non-combat . | . . . . Combat . | . . . . Robot Hacks Applied . | . . . . Relay Couplers Released . | . . . . Fabnet Peak Effective % . | . . . . Robots Rewired . | . . . . Allies Hacked . | . . . . Hacks Repelled . | . . . . Allies | -11 -10 -9 -8 -------- Run | Yrd Mat Mat Mat Total Allies . | . . . . Largest Group . | . . . . Highest-Rated Group . | . . . . Highest-Rated Ally . | . . . . Total Orders . | . . . . Ally Attacks . | . . . . Total Damage . | . . . . Kills . | . . . . Allies Corrupted . | . . . . Allies Melted . | . . . . Intel | -11 -10 -9 -8 ------- Run | Yrd Mat Mat Mat Active Infowar (turns) 872 | . . . 872 Sensors 872 | . . . 872 Robot Analysis Total . | . . . . Derelict Logs Recovered . | . . . . Drone Launches . | . . . . Drone Recoveries . | . . . . Exploration | -11 -10 -9 -8 ------------- Run | Yrd Mat Mat Mat Turns Passed 2986 | 88 888 759 1251 Spaces Moved 1358 | 62 415 359 522 Core 31 | 22 . . 9 Treads 306 | 40 266 . . Legs 1021 | . 149 359 513 Wheels . | . . . . Hover . | . . . . Flight . | . . . . Fastest Speed 50 | 50 160 105 108 Average Speed 163 | 120 170 149 173 Slowest Speed 750 | 160 190 245 750 Overloaded Moves . | . . . . Propulsion Burnouts . | . . . . Robots Hopped . | . . . . Potential Cave-ins . | . . . . Cave-ins Triggered . | . . . . Exploration Rate (%) 33 | 5 63 26 38 Regions Visited 3 Branch Regions . Pre-discovered Areas . | . . . . Known Exits Taken . | . . . . Unknown Exits Taken 3 | 1 1 1 . Scrap Searched . | . . . . Spaces Dug . | . . . . Terrain Destroyed 68 | . . 53 15 Melee . | . . . . Projectile 3 | . . . 3 AOE 65 | . . 53 12 Terrain Rammed . | . . . . Walls Destroyed . | . . . . Machines Disabled . | . . . . Actions | -11 -10 -9 -8 --------- Run | Yrd Mat Mat Mat Total 1802 | 74 497 495 736 Wait 108 | . 5 35 68 Move 1355 | 61 414 358 522 Hop . | . . . . Pick Up 53 | 7 16 11 19 Fast Attach 4 | 2 1 1 . Attach 34 | 4 3 12 15 Detach 5 | . 1 2 2 Swap 17 | . 4 5 8 Drop 20 | . 4 6 10 Fire 203 | . 49 63 91 Melee . | . . . . Ram . | . . . . Kick 3 | . . 2 1 Crush . | . . . . Escape Stasis . | . . . . Rewire . | . . . . Trap . | . . . . Miscellaneous . | . . . . Route ------- -11/Scrapyard -10/Materials (discovered 3 exits: *Mat x2 / [*Min]) -9/Materials -8/Materials (discovered 1 exit: *Fac) History --------- Turn | Location | Event 3 | -11/Scrapyard | Discovered new exit (range 16) 89 | -11/Scrapyard | Entered Materials 313 | -10/Materials | Build established: Mutant 414 | -10/Materials | Discovered new exit (range 5) 477 | -10/Materials | Core integrity fell below 50% 693 | -10/Materials | Discovered new exit (range 9) 787 | -10/Materials | Discovered new exit (range 14) 977 | -10/Materials | Entered another Materials area 977 | -9/Materials | Evolved 2 slots: Propulsion x1, Utility x1 1175 | -9/Materials | Lost 4 parts (1p2n1w) 1603 | -9/Materials | Build established: Scientist-Mutant 1612 | -9/Materials | Core integrity fell below 50% 1725 | -9/Materials | Discovered new exit (range 11) 1736 | -9/Materials | Entered another Materials area 1736 | -8/Materials | Evolved 2 slots: Propulsion x1, Utility x1 1864 | -8/Materials | Repaired Grenade Launcher+ 1909 | -8/Materials | Build established: Scavenger-Mutant 2406 | -8/Materials | Central database locked down 2598 | -8/Materials | Discovered new exit (range 4) 2634 | -8/Materials | Identified exit to Factory 2773 | -8/Materials | Garrison activated, responded to threat 2864 | -8/Materials | Lost 9 parts (2p3n1u3w) 2896 | -8/Materials | Core integrity fell below 50% 2941 | -8/Materials | Lost 7 parts (3n1u3w) 2972 | -8/Materials | Core integrity fell below 20% 2987 | -8/Materials | Destroyed by G-47 Trooper with Particle Gun Last Messages --------------- 02941_ U-05 Engineer builds a Wall. 02942_ U-05 Engineer lays Concrete. 02943_ K-01 Serf collects debris. 02943_ U-05 Engineer lays Concrete. 02946_ K-01 Serf collects debris. 02946_ U-05 Engineer builds a Wall. 02946_ U-05 Engineer lays Concrete. 02950_ U-05 Engineer builds a Wall. 02950_ U-05 Engineer lays Concrete. 02950_ K-01 Serf collects debris. 02952_ U-05 Engineer lays Concrete. 02952_ U-05 Engineer builds a Wall. 02954_ K-01 Serf collects debris. 02959_ Connecting with Terminal... 02959_ ALERT: Suspicious activity at Terminal M011. Dispatching Investigation squad. 02962_ K-01 Serf collects debris. 02974_ Beam Rifle+ destroyed. 02977_ K-01 Serf collects debris. 02985_ K-01 Serf destroyed. Map ----- +----------------------------------------------------+ | ?????????????????????????????????????????????????? | | ?????????????????????????????????????????????????? | | ?????????????????????????????????????????????????? | | ?????????????????????????????????????????????????? | | ?????????????????????????????????????????????????? | | ?????????????????????????????????????????????????? | | ?????????????????????????????????????????????????? | | ?????????????????????????????????????????????????? | | ???????????????????????#########?????????????????? | | ??????????############## #?????????????????? | | ??????????# # # ??????????????????? | | ??????????# # < # ???????????????????? | | ??????????# # ## #????????????????????? | | ??????????# + ### ###########???????????? | | ??????????# # #???????????? | | ??????????# # #???????????? | | ??????????# # #???????????? | | ??????????# ######## k#### #???????????? | | ??????????# #??????# #??#% #???????????? | | ???######################## #??# % #?????###+### | | ??? a = #??# ####### # | | ?? ! #??# # | | ?? #??# % | | ?? """ #??# %! # | | ????????####### """ ######### ####+### # | | ??????????????##a """ @#???##! ## ###+### | | ???????????????# u #???#! ## # | | ???????????????# ##??#! ## # T | | ??????????????## "#??#! + "" # | | ??????????????## T#??#! ####!""" # | | ????????????#### =%* "#??##! #??# S" # """ " | | ?????########### % ##???####??# # """ " | | ?????# #u gg !!!#??????????####### """ " | | ?????# %# !! #????????????????# | | ?????# """ =# g ! !! #????????????????####### | | ?????# """ b "Y #??????????????????????? | | ?????# """ "" %# % #??????????????????????? | | ?????# """ G" # % #??????????????????????? | | ?????# """ "" # #??????????????????????? | | ?????# # T"####??????????????????????? | | ?????########### #"""#?????????????????????????? | | ??????????????## #####?????????????????????????? | | ???????????????# #?????????????????????????????? | | ???????????????# ?????????????????????????????? | | ???????????????# ?????????????????????????????? | | ???????????????# ????????????????????????????? | | ???????????????######????????????????????????????? | | ?????????????????????????????????????????????????? | | ?????????????????????????????????????????????????? | | ???????????????????????????????????????????????### | +----------------------------------------------------+ Best States ------------- Heat Dissipation 31 Energy Generation 14 Energy Capacity 250 Matter Stores 300 Matter Capacity 300 Sight Range 16 Robot Scan Range 15 Terrain Scan Density 10 Armor Coverage 150 Core Shielding 20 Propulsion Shielding 33 Evasion (%) 55 Recoil Reduction 2 Item Schematics ----------------- Lrg. Storage Unit | -9/Materials | Scanalyzed System Shield | -8/Materials | Hacked Hacking Suite | -8/Materials | Scanalyzed Robot Schematics ------------------ None Fabricated ------------ Nothing Repaired ---------- Grenade Launcher | 10% | -8/Materials Studied --------- Ion Engine | -9/Materials | Hacked Aluminum Leg | -9/Materials | Hacked Assault Rifle | -9/Materials | Hacked Grenade Launcher | -9/Materials | Hacked Lgt. Ion Engine | -9/Materials | Hacked Beam Rifle | -9/Materials | Hacked Lgt. Assault Rifle | -9/Materials | Hacked Imp. Aluminum Leg | -8/Materials | Hacked Assault Cannon | -8/Materials | Hacked Alien Tech Used ----------------- None Achievements -------------- Everything Is Under Control GoHome() Hey, That's Mine! Item+ Shopping List Use The Force Challenges ------------ None Game ------ Seed LightBorgFemtoactuators Manual? 0 Play Time 00:45:06 Cumulative 5.5 hours Start 2026.07.08 @ 11:54:38 End 2026.07.08 @ 13:07:11 Sessions 5 Manual Loads 0 Difficulty Rogue Special Mode None Game No. 4 Rogue 1 Adventurer 3 Explorer 0 Win Type - Total 0 Types 0/0/0/0/0/0/0/0/0/0 Lore% 4 Gallery% 9 Achievement% 10 Wizard Run 0 Options --------- Layout 0 ASCII 0 Keyboard 0 Movement Mouse Keybinds 0 Fullscreen 1 Font 18/SmallcapsGlow Map View 76x50 Zoom Use 0% Tactical HUD 1 Map Filters NONE Filters NONE Steam 1 RUN: 259ddda5-d184-46b1-9322-9a7549891532